{"text_format":"1","workbook":"xlsx","n_sheets":2,"sheets":["Výpočet konzumční křivky","křivky"],"not_rendered":{"charts":0,"images":0,"macros":1,"external_links":0,"defined_names":1,"comments":0,"pivot_tables":0},"unopened":[],"bounds":{"document_bytes":16777216,"sheet_cells":100000,"rows_first":2000,"rows_last":500,"rows_between":2000,"halvings":0,"cell_chars":16384,"cell_head_chars":4096},"cells_cut":0,"cells_raw":0,"read":"whole","date_system":"1900"}

{"sheet":"Výpočet konzumční křivky","index":0,"n_rows":192,"n_cols":23,"rows_kept":192,"cut":false,"hidden":false,"merged":[[125,29,126,29],[125,30,126,30],[145,2,145,3],[145,0,145,1],[144,0,144,6],[96,0,96,1],[96,5,96,10],[124,0,124,10],[127,0,127,1],[127,3,127,4],[127,5,127,6],[99,0,101,2],[97,3,97,10],[98,5,98,10],[120,0,120,1],[120,5,120,10],[100,3,100,6],[101,3,101,6],[98,0,98,1],[103,3,103,6],[117,3,117,10],[117,0,117,2],[118,0,118,2],[118,11,119,12],[196,5,196,6],[51,0,51,2],[193,8,193,10],[119,0,119,1],[121,0,121,1],[119,7,119,8],[119,4,119,5],[142,1,142,4],[127,7,141,10],[76,0,76,2],[76,3,76,5],[76,7,76,10],[77,0,77,2],[77,3,77,10],[71,0,71,2],[71,3,71,10],[72,0,72,2],[63,0,63,2],[145,4,145,6],[126,5,126,6],[190,0,190,10],[86,5,86,7],[59,8,61,10],[110,5,110,6],[110,3,110,4],[109,5,109,6],[110,7,110,8],[111,3,111,4],[113,7,113,8],[116,3,116,10],[118,6,118,10],[112,3,112,4],[64,0,64,2],[64,5,64,10],[66,1,66,8],[75,0,75,2],[72,3,72,10],[73,0,73,2],[89,3,89,6],[80,0,80,10],[84,0,84,7],[83,0,83,6],[107,0,107,10],[112,5,112,6],[112,7,112,8],[2,11,5,14],[104,3,104,6],[105,3,105,6],[102,0,102,6],[87,0,89,2],[87,3,87,6],[31,3,31,8],[95,4,95,5],[95,7,95,8],[30,3,30,8],[81,0,81,10],[53,0,53,2],[99,3,99,6],[52,0,52,2],[10,11,10,12],[12,11,12,12],[95,0,95,1],[68,0,68,2],[70,0,70,2],[70,3,70,10],[85,5,85,7],[74,0,74,2],[82,0,82,10],[88,3,88,6],[37,21,37,25],[42,0,42,2],[45,7,45,8],[30,18,30,21],[31,18,31,21],[30,22,30,25],[31,22,31,25],[33,3,33,10],[61,0,61,2],[60,0,60,2],[34,14,34,17],[52,22,52,28],[38,0,38,2],[34,0,34,2],[37,16,37,20],[43,0,43,2],[37,13,37,15],[43,8,43,10],[38,3,38,10],[40,0,41,2],[39,0,39,2],[39,3,39,10],[45,5,45,6],[45,0,45,2],[15,15,15,16],[21,11,22,11],[21,12,21,13],[15,12,16,13],[19,12,19,13],[13,11,13,12],[14,12,14,13],[30,0,30,2],[63,6,63,10],[54,0,55,10],[57,3,57,10],[57,0,57,2],[56,3,56,10],[34,3,34,10],[37,0,37,2],[50,14,58,14],[46,12,46,18],[59,0,59,2],[46,3,46,10],[47,0,47,2],[47,3,47,10],[45,3,45,4],[44,8,44,10],[51,3,51,10],[222,0,229,8],[86,13,86,15],[94,11,94,13],[125,0,125,10],[126,0,126,1],[126,3,126,4],[145,7,145,10],[146,1,146,10],[142,7,142,8],[113,3,113,4],[122,3,122,8],[113,5,113,6],[122,0,122,2],[111,7,111,8],[109,7,109,8],[109,3,109,4],[109,15,110,15],[115,0,115,10],[197,0,197,10],[192,7,192,8],[111,5,111,6],[116,0,116,2],[114,0,114,10],[93,0,93,5],[17,14,18,16],[20,12,20,13],[17,12,18,13],[42,3,42,10],[30,13,30,17],[31,13,31,17],[49,0,49,10],[50,0,50,2],[50,3,50,10],[37,3,37,10],[44,0,44,2],[31,0,31,2],[29,0,29,10],[33,0,33,2],[50,13,57,13],[47,12,47,18],[48,12,48,18],[52,3,52,10],[53,3,53,10],[46,0,46,2],[56,0,56,2],[58,0,58,2],[58,3,58,10],[0,3,0,4],[0,5,0,10],[10,3,10,5],[65,0,65,10],[67,0,67,2],[67,3,67,10],[94,0,94,1],[91,3,91,6],[92,3,92,6],[6,3,6,5],[5,3,5,5],[75,3,75,10],[90,0,92,2],[90,3,90,6],[94,5,94,10],[68,3,68,10],[69,3,69,10],[3,8,3,10],[2,8,2,10],[2,4,2,5],[13,6,13,10],[14,6,14,10],[1,5,1,10],[15,6,15,10],[16,6,16,10],[17,3,17,10],[18,3,18,10],[12,3,12,10],[13,3,13,4],[14,3,14,4],[15,3,15,4],[16,3,16,4],[11,3,11,10]]}
[null,null,null,"Název měrného objektu průtoků",null,{"$f":"IF(O14=\"F\",\" : chyba v šířce hrdla\",\":   \"&\"měrný  \"&D4&\" \")","v":":   měrný  Parshallův žlab P2 "}]
[null,null,null,null,null,{"$f":"IF(F1=\" : chyba v šířce hrdla\",\"pozn.: změn šířku hrdla dle rozsahu uvedeném v legendě\",\"\")","v":""}]
[null,null,null,"Zadej\n typ měrného objektu","Zadej parametr\n(přepiš šířku skutečnou hodnotou)",null,"Zadej\nhloubku\nh (cm)","Průtok\nQ (l/s)","Rozšířená nejistota \n měření  na hladině pravděpodobnosti 95%"]
[null,null,null,"Parshallův žlab P2",{"$f":"\"šířka hrdla (cm) \"","v":"šířka hrdla (cm) "},{"$f":"IF(D4=A21,2.54,IF(D4=A22,5.08,IF(D4=A23,7.62,IF(D4=A24,15.21,IF(D4=A25,22.9,IF(D4=A26,30.5,IF(D4=A27,45.7,IF(D4=A28,61,IF(D4=A29,91.4,\" FF\")))))))))","v":5.08},21.3,{"$f":"G60","v":10.84095831613431},{"$f":"H60","v":5.2688132751883263E-2}]
[]
[]
[null,null,null,"Měrná křivka je ve tvaru rovnice Q =",null,null,{"$f":"D42","v":0.1197},{"$f":"\" * \"&\" h ^\"&E42","v":" *  h ^1,553"}]
[]
[]
[null,null,null,null,null,null,",kde hloubka h …(m)     a     průtok Q …(m^3/s) "]
[null,null,null,"Výpočet je pro odečet hloubky h ve vzdálenosti =",null,null,{"$f":"IF(AND(O14=\"P1\"),30.7,IF(AND(O14=\"P2\"),34,IF(AND(O14=\"P3\"),39,IF(AND(O14=\"P4\"),53,IF(O14=\"P5\",75,IF(AND(O14=\"P6\"),120,IF(AND(O14=\"P7\"),130,IF(AND(O14=\"P8\"),135,IF(AND(O14=\"P9\"),150,\" H\")))))))))","v":34},{"$f":"\" cm před hrdlem\"","v":" cm před hrdlem"},null,null,null,null,null,null,"DÚLEŽITÉ"]
[null,null,null,"     Výpočet konzumční křivky je dle modelu DAVIS (1961) Místo odečtu hloubky je zvoleno v profilu, kde je naklonění hladiny minimální a  chyba měření hloubky je minimální. Model Davise  schválen ČMI jako pracovní měřidlo nestanovené  pod úřední značkou TCM 142/95-2075 s maximální chybou měření  do 1.5 % okamžitého průtoku. Vzorec Davise, v prorovnání s ČSN ISO  ( ta stanovuje Qh křivku pouze pro místo, kde je v korytě významné naklonění hladiny),  vykazuje shodu do  1,5%.   \n    Zpřesnění měrné křivky Q(h) je možné zavedením skutečné střední šířky hrdla do buňky F4  ( průměrná hodnota šířky hrdla  v horizontálním i veritkálním směru )"]
[null,null,null,"  Standardní nejistoty parametrů typu B (pravděpodobnost 67%)  pro výpočet rozšířené nejistoty měření\n                                                                       na hladině  pravděpodobnosti 95% dle  EA 4/02  :"]
[null,null,null,"relativní  nejistota B vzorce  (%) =",null,1.5,"pro Parshallovy žlaby doporučeno 1,5%, ",null,null,null,null,null,null,null,{"$f":"IF(AND(F4>2.34,F4<2.64),\"P1\",IF(AND(F4>4.88,F4<5.28),\"P2\",IF(AND(F4>7.3,F4<7.9),\"P3\",IF(AND(F4>14.5,F4<16),\"P4\",IF(AND(F4>21.4,F4<24.4),\"P5\",IF(AND(F4>29,F4<32),\"P6\",IF(AND(F4>43.7,F4<47.4),\"P7\",IF(AND(F4>59,F4<63),\"P8\",IF(AND(F4>89.4,F4<93.4),\"P9\",\"F\")))))))))","v":"P2"}]
[null,null,null,"nejistota B určení nuly  (mm) =",null,0.8,"směrodatná odchylka   nivelety  při Q=0 l/s  je cca 0,3 až 2 mm",null,null,null,null,null,null,null,{"$f":"F4","v":5.08}]
[null,null,null,"nejistota B hloubky (mm) =",null,1,"směrodatná odchylka   nivelety  při průtoku  je  cca 1 až 3 mm"]
[null,null,null,{"$f":"\"nejistota šířky B hrdla (mm) =\"","v":"nejistota šířky B hrdla (mm) ="},null,1,"směrodatná odchylka průměrné šířky hrdla (viz tab.)"]
[]
[null,null,null,"Legenda:\n   reálná šířka hrdla na lokalitě  se může lišit od standardní šířky. Po zadání skutečné šířky hrdla je měrná křivka korigována a výsledné Q je přesnější.\n    typ  parshallova žlabu                      P1          P2         P3          P4          P5         P6         P7         P8          P9  \n    standardní šířka hrdla (cm)       2,54     5,08     7,62      15,24       22,9      30,5      45,7        61,0      91,4             \n    odchylka  šířky hrdla (mm)            1       1,4        1,8           2             2,5          8           10           10          10            \n    nejistota určení nuly:  závisí na  naklonění,  nerovinatosti dna  před hdlem , podmínkách a způsobu měření   (obvykle od0,3 do 2 mm)\n    nejistota hloubky:  závisí na vlnění, na podmínkách způsobu  hladiny,  (od 0,3 pro laboratorní podmínky,  do 1 do 3 mm pro realitu)          "]
[]
["Parshallův žlab P1",null,null,"pa"]
["Parshallův žlab P2",null,null,"tr"]
["Parshallův žlab P3",null,null,"ob"]
["Parshallův žlab P4",null,null,"mv"]
["Parshallův žlab P5"]
["Parshallův žlab P6"]
["Parshallův žlab P7"]
["Parshallův žlab P8"]
["Parshallův žlab P9"]
[]
["Měřidlo - průtokoměr",null,null,null,null,null,null,null,null,null,{"$f":"O14","v":"P2"},null,null,null,null,null,null,null,"měrný Parshallův žlab Pars aqua z polypropylénu ",null,null,null,"měrný Venturiho žlab  z nerezu "]
[null,null,null,null,null,null,null,null,null,null,{"$f":"O15&\" cm\"","v":"5,08 cm"},null,null,null,null,null,null,null,"směrodatná šířka hrdla ",null,null,null,"směrodatná šířka hrdla "]
[]
["Zařazení měřidla",null,null,"Pracovní měřidlo nestanovené"]
["Vyobrazení přítok-odtok",null,null,null,null,null,null,null,null,null,null,null,null,null,"                         .                                                                                                                     "]
[]
[null,null,null,null,null,null,null,null,null,null,null,null,null,"V přepad",null,null,"Parshall",null,null,null,null,"Venutrák"]
["Popis hydraulické části",null,null,{"$f":"IF(CODE(K31)=80,Q38,IF(CODE(K31)<=57,N38,IF(CODE(K31)=77,V38)))","v":"Jedná se o typizovaný Parshallův měrný žlab Pars aqua  z polypropylénu.  Měrný žlab splňuje  podmínky dle ČMI TCM 142/95- 2075 - \" ČMI Rozhodnutí o schválení typu měřidla \". Odpadní voda natéká potrubím  DN 250 ( přechodová délka  cca 10 cm) do kruhové šachty DN 1000 a do Parshallova žlabu . Rozšíření z profilu Parshallova žlabu na profil přítokového kanálu je  plynulé- v souladu s certifikací TCM .Žlab je umístěn ve sklonu proti vodě 2 mm/400 mm. Rychlostní profil v měrném profilu je před měrným žlabem vyrovnaný, s říčním prouděním , na odtoku je říční proudění  ( koeficent zatopení od 0,33 a méně)  Hladina v recipentu je dostatečně zaklesnutá. Měrný objekt není poškozen.  Pro danou geometrii měrného žlabu platí pro výpočet průtoku postup uvedený v ČMI TCM 142/95- 2075.  "},null,null,null,null,null,null,null,null,null,"Trojúhelníkový přepad z polypropylénu je vybaven ostrou přepadovou hranu  . Vrchol přepadu je cca 30,5 cm nad dnem, šířka uklidňovací komory je 80 cm, délka 45 cm. Štěrbina pod nornou stěnou je cca 15 cm.Potrubí DN 200 je zaústěno cca 10 cm pod vrcholem přelivu. Na vtoku je u dna rozrážecí příčka. Měrný  přeliv  odpovídá ČSN ISO 1438 - 1 \"Tenkostěnné přelivy\" a pro danou geometrii měrného přepadu platí pro výpočet průtoku postup uvedený v ČSN ISO. Rychlostní profil v měrném profilu před měrným profilem vyrovnaný, hladina je klidná . Měrný objekt není poškozen.",null,null,"Jedná se o typizovaný Parshallův měrný žlab Pars aqua  z polypropylénu.  Měrný žlab splňuje  podmínky dle ČMI TCM 142/95- 2075 - \" ČMI Rozhodnutí o schválení typu měřidla \". Odpadní voda natéká potrubím  DN 250 ( přechodová délka  cca 10 cm) do kruhové šachty DN 1000 a do Parshallova žlabu . Rozšíření z profilu Parshallova žlabu na profil přítokového kanálu je  plynulé- v souladu s certifikací TCM .Žlab je umístěn ve sklonu proti vodě 2 mm/400 mm. Rychlostní profil v měrném profilu je před měrným žlabem vyrovnaný, s říčním prouděním , na odtoku je říční proudění  ( koeficent zatopení od 0,33 a méně)  Hladina v recipentu je dostatečně zaklesnutá. Měrný objekt není poškozen.  Pro danou geometrii měrného žlabu platí pro výpočet průtoku postup uvedený v ČMI TCM 142/95- 2075.  ",null,null,null,null,"Jedná se o typizovaný Venturiho žlab MVŽ B II.   Měrný žlab splňuje všechny podmínky dle typového podkladu  HDP Praha. Odpadní voda natéká koridorem délky  3,5m, íře 0,4m do měrného objektu . Rozšíření z profilu MVŽ B II na profil přítokového kanáluje vyhovující. Rychlostní profil v měrném profilu je před měrným žlabem vyrovnaný, s říčním prouděním, na odtoku je bystřinné proudění  (koeficent zatopení vyhovuje).  Hladina v recipentu je dostatečně zaklesnutá. Měrný objekt není poškozen.  Pro danou geometrii měrného žlabu platí pro výpočet průtoku postup uvedený v typovém podkladu HDP a zprávy vÚV TGM 2000. "]
[null,null,null,"Při  provozování  objektu v souladu s návodem na obsluhu a pokud nedojde k významné  změně rozsahu průtoku vod hydraulická část vyhovuje podmínkám zákona č.  254/2001 Sb.  \"O vodách\" , Nařízení vlády  143/2012 Sb. a vyhlášky 123/2012 Sb.                                                                                                        ",null,null,null,null,null,null,null,null,"tento řádek se nekopíruje do úředního měření"]
[]
[null,null,null,"a"]
[null,null,null,{"$f":"F42*(IF($K$31<130,G42,O15)/G42)","v":0.1197},{"$f":"IF($K$31=\"P1\",křivky!C3,IF($K$31=\"P2\",křivky!C4,IF($K$31=\"P3\",křivky!C5,IF($K$31=\"P4\",křivky!C6,IF($K$31=\"P5\",křivky!C7,IF($K$31=\"P6\",křivky!C8,IF($K$31=\"P7\",křivky!C9,IF($K$31=\"P8\",křivky!C10,IF($K$31=\"P9\",křivky!C11,IF($K$31<130,křivky!C12,IF($K$31=\"MVŽBII30\",křivky!C13,IF($K$31=\"MVŽBII20\",křivky!C14,IF($K$31=\"MVŽBII10\",křivky!C16,IF($K$31=\"MVŽBII40\",křivky!C17,IF($K$31=\"MVŽBII15\",křivky!C15)))))))))))))))","v":1.5529999999999999},{"$f":"IF($K$31=\"P1\",křivky!B3,IF($K$31=\"P2\",křivky!B4,IF($K$31=\"P3\",křivky!B5,IF($K$31=\"P4\",křivky!B6,IF($K$31=\"P5\",křivky!B7,IF($K$31=\"P6\",křivky!B8,IF($K$31=\"P7\",křivky!B9,IF($K$31=\"P8\",křivky!B10,IF($K$31=\"P9\",křivky!B11,IF($K$31<130,křivky!B12,IF($K$31=\"MVŽBII30\",křivky!B13,IF($K$31=\"MVŽBII20\",křivky!B14,IF($K$31=\"MVŽBII10\",křivky!B16,IF($K$31=\"MVŽBII40\",křivky!B17,IF($K$31=\"MVŽBII15\",křivky!B15)))))))))))))))","v":0.1197},{"$f":"IF($K$31=\"P1\",křivky!D3,IF($K$31=\"P2\",křivky!D4,IF($K$31=\"P3\",křivky!D5,IF($K$31=\"P4\",křivky!D6,IF($K$31=\"P5\",křivky!D7,IF($K$31=\"P6\",křivky!D8,IF($K$31=\"P7\",křivky!D9,IF($K$31=\"P8\",křivky!D10,IF($K$31=\"P9\",křivky!D11,IF($K$31<130,křivky!D12,IF($K$31=\"MVŽBII30\",křivky!D13,IF($K$31=\"MVŽBII20\",křivky!D14,IF($K$31=\"MVŽBII10\",křivky!D16,IF($K$31=\"MVŽBII40\",křivky!D17,IF($K$31=\"MVŽBII15\",křivky!D15)))))))))))))))","v":5.08},null,null,null,{"$f":"IF($K$31=\"P1\",křivky!I3,IF($K$31=\"P2\",křivky!I4,IF($K$31=\"P3\",křivky!I5,IF($K$31=\"P4\",křivky!I6,IF($K$31=\"P5\",křivky!I7,IF($K$31=\"P6\",křivky!I8,IF($K$31=\"P7\",křivky!I9,IF($K$31=\"P8\",křivky!I10,IF($K$31=\"P9\",křivky!I11,IF($K$31<130,křivky!I12,IF($K$31=\"MVŽBII30\",křivky!I13,IF($K$31=\"MVŽBII20\",křivky!I14,IF($K$31=\"MVŽBII10\",křivky!I16,IF($K$31=\"MVŽBII40\",křivky!I17,IF($K$31=\"MVŽBII15\",křivky!I15)))))))))))))))","v":26.4}]
["Podmínky kontrolního                  měření",null,null,"Vzhledem k omezeným možnostem regulace průtoku měrným profilem byly provedeny celkem tři měření ."]
["Teplota vzduchu",null,null,5,"0C"]
["Teplota vody",null,null,">10","°C",null,null,null,"celoročně nezamrzá"]
["Vlnění hladiny",null,null,1,null,"při průtoku",null,5.0000000000000001E-3]
["Použitá měřící metoda pro úřední měření",null,null,{"$f":"IF(CODE(K31)=80,M48,IF(CODE(K31)<=57,M47,IF(CODE(K31)=77,M49)))","v":"Úřední měření hodnot průtoků na Parshallovu žlabu ( viz tabulka) bylo provedeno výpočtem z konzumční křivky (funkční závislot průtoku na přepadové výšce) pro různé přepadové výšky. Konzumční křivka  je  odvozena dle certifikace ČMI TCM 142/95- 2075 na základě úředně změřených geometrickýchých charakteristik Parshallova žlabu a  změřených podmínek na přítoku a odtoku měrného objektu průtoků ( sklon, průměr, drsnost a tvar kanálu)  .  "},null,null,null,null,null,null,null,null,"Úřední měření hodnot průtoků na ostrohranném přelivu ( viz tabulka) bylo provedeno výpočtem z konzumční křivky (funkční závislot průtoku na přepadové výšce) pro různé přepadové výšky. Konzumční křivka  je  odvozena dle dle ČSN ISO 1438-1 Tenkostěnné přelivy na základě úředně změřených geometrickýchých charakteristik měrného přelivu a  změřených podmínek na přítoku a odtoku měrného objektu průtoků ( sklon, průměr, drsnost a tvar kanálu)  . "]
["Závěr a doporučení",null,null,"Hydraulická část vyhovuje podmínkám  zákona č.  254/2001 Sb.  \"O vodách\" , Nařízení vlády  143/2012 Sb. a vyhlášky 123/2012 Sb za předpokladu pravidelné kontroly a čištění  měrného objektu a za předpokladu , že objekt není zatopen spodní vodou.                                                                                                         ",null,null,null,null,null,null,null,null,"Úřední měření hodnot průtoků na Parshallovu žlabu ( viz tabulka) bylo provedeno výpočtem z konzumční křivky (funkční závislot průtoku na přepadové výšce) pro různé přepadové výšky. Konzumční křivka  je  odvozena dle certifikace ČMI TCM 142/95- 2075 na základě úředně změřených geometrickýchých charakteristik Parshallova žlabu a  změřených podmínek na přítoku a odtoku měrného objektu průtoků ( sklon, průměr, drsnost a tvar kanálu)  .  "]
[]
["Popis registračního zařízení - snímač/elektronika"]
[]
[]
[]
["Zařazení měřidla",null,null,"Pracovní měřidlo nestanovené"]
["Vyobrazení snímače a vyhodnocovače- "]
[]
[null,null,null,null,null,null,null,null,null,null,null,null,null,null,null,null,"SPA"]
[]
[null,null,null,null,null,null,null,null,null,null,null,"NEZADAVÁ SE !!! odhad směrodatné odchylky hloubky pro instalovaný elektronický vyhodnocovač (mm), dtto řádek kde se zadává D90,G90","nejistota průtoku z důvodu chyby v hloubce vyhodnocovače  (% )","nejist průtoku z důvodu chyby nuly %",null,"v tabulce jsou uvedeny intervaly měření průtoku Rozsah I a Rozsah II  s vyčíslením dosažitelné rozšířené nejistoty měření (hladina pravděpodobnosti výskytu 95 %) při optimíálním seřízení stávajícího elektronického vyhodnocovače  bez započítání systematické chyby seřízení stávajícího elektronického vyhodnocovače"]
[null,null,null,null,{"$f":"G4","v":21.3},"Q (l/s)",{"$f":"D42*POWER((E60/100),E42)*1000","v":10.84095831613431},{"$f":"2*SQRT(POWER(D95,2)+POWER(M60,2)+POWER(N60,2)+POWER(IF(CODE(K31)=80,L97,IF(CODE(K31)<=57,L96,IF(CODE(K31)=77,L97))),2))/100","v":5.2688132751883263E-2},null,null,null,{"$f":"D96","v":1},{"$f":"(POWER(L60/10/E60+1,IF(CODE(K31)=80,1.5,IF(CODE(K31)<=57,2.5,IF(CODE(K31)=77,1.5))))-1)*100","v":0.70505126206916735},{"$f":"(POWER(D97/10/E60+1,IF(CODE(K31)=80,1.5,IF(CODE(K31)<=57,2.5,IF(CODE(K31)=77,1.5))))-1)*100","v":0.56390894658566726}]
[]
[]
[]
[]
[]
[]
[null,"Funkce registračního zařízení - snímač/elektronika"]
[]
[]
[]
[]
[]
[]
[]
[]
[]
["Stav sumace (vyhodnocovač )",null,null,176227,null,null,"m3","63043hod"]
["Závěr",null,null,"Ultrazvukový průtokoměr vyhovuje podmínkám zákona č.  254/2001 Sb.  \"O vodách\" , Nařízení vlády  143/2012 Sb. a vyhlášky 123/2012 Sb. "]
[]
[]
[]
[]
[]
[]
[]
[]
[]
[]
[]
[]
[]
[]
[]
[]
[null,null,"vzorce",{"$f":"F14","v":1.5},"%",null,null,null,null,null,null,null,null,null,null,"průměrná směrodatná odchylka hloubky"]
[null,null,"hloubky",{"$f":"F16","v":1},"mm pro Qmin        a ",null,null,null,null,null,null,{"$f":"(TAN(RADIANS(K31+D99)/2)-TAN(RADIANS(K31)/2))/TAN(RADIANS(K31)/2)*100","v":{"$error":"#VALUE!"}},null,null,null,{"$f":"(D96+G96)/2","v":0.5}]
[null,null,"nuly",{"$f":"F15","v":0.8},"mm",null,null,null,null,null,null,{"$f":"(D99/10)/O15*100","v":1.9685039370078741}]
[null,null,"pozn.:",{"$f":"IF(CODE(K31)=80,O121,IF(CODE(K31)<=57,O123,IF(CODE(K31)=77,O122)))","v":0}]
[null,null,{"$f":"IF(CODE(K31)=80,O120,IF(CODE(K31)<=57,O119,IF(CODE(K31)=77,O120)))","v":0},{"$f":"F17","v":1},{"$f":"IF(CODE(K31)=80,P120,IF(CODE(K31)<=57,P119,IF(CODE(K31)=77,P120)))","v":0}]
[]
[]
[]
[]
[]
[]
[]
[]
[]
[]
[]
[]
[]
[]
[]
[]
[]
[]
[]
[]
[]
[]
[]
[]
[]
[]
[]
[]
[]
[]
[]
[]
[]
[]
[]
[]
[]
[]
[]
[]
[]
[]
[]
[]
[]
[]
[]
[]
[]
[]
[]
[]
[]
[]
[]
[]
[]
[]
[]
[]
[]
[]
[]
[]
[]
[]
[]
[]
[]
[]
[]
[]
[]
[]
[]
[]
[]
[]
[]
[]
[]
[]
[]
[]
[]
[]
[]
[]
[]
[]
[null,null,null,null,null,null,null,null,null,null,null,null,null,null,50,1.3]
[null,null,null,null,null,null,null,null,null,null,null,null,null,null,80,1.2]
[null,null,null,null,null,null,null,null,null,null,null,null,null,null,120,1.2]

{"sheet":"křivky","index":1,"n_rows":11,"n_cols":9,"rows_kept":11,"cut":false,"hidden":false,"merged":[]}
[null,"standard","standard",null,null,null,"Chyba vzorce"]
[null,"a","b","hrdlo (cm)",null,null,"(%)",null,"výška cm"]
["P1",6.0900000000000003E-2,1.552,2.54,null,null,1.5,null,23]
["P2",0.1197,1.5529999999999999,5.08,null,null,1.5,null,26.4]
["P3",0.1784,1.5549999999999999,7.62,null,null,1.5,null,46.7]
["P4",0.35399999999999998,1.5580000000000001,15.24,null,null,1.5,null,62]
["P5",0.52139999999999997,1.5580000000000001,22.86,null,null,1.5,null,80]
["P6",0.67300000000000004,1.556,30.48,null,null,2,null,92.5]
["P7",1.0149999999999999,1.56,45.7,null,null,2,null,92.5]
["P8",1.369,1.5640000000000001,61,null,null,2,null,92.5]
["P9",2.08,1.569,91.4,null,null,2,null,92.5]